fUST/lending_fUST_20250810
["ID","MTS","AMOUNT","RATE_DAILY","PERIOD"]
[378266003,1754807437022,-127.34189062,0.00021345,2]
[378266004,1754807437033,-198.25594894,0.00021345,2]
[378266005,1754807437043,-300.0,0.0002144,2]
[378266006,1754807437052,-138.90676889,0.0002144,2]
[378266007,1754807437064,-798.63846516,0.0002144,2]
[378266016,1754807437952,-262.45476595,0.0002144,2]
[378266018,1754807437962,-460.0,0.00021441,2]
[378266020,1754807437971,-460.0,0.00021441,2]
[378266022,1754807437981,-460.0,0.00021441,2]
[378266024,1754807437990,-460.0,0.00021441,2]
[378266026,1754807438000,-460.0,0.00021441,2]
[378266028,1754807438009,-175.259172,0.00021441,2]
[378266030,1754807438019,-463.89803972,0.00021441,2]
[378266032,1754807438028,-460.0,0.00021441,2]
[378266034,1754807438038,-460.0,0.00021442,2]
[378266036,1754807438047,-460.0,0.00021442,2]
[378266038,1754807438057,-462.00338238,0.00021442,2]
[378266040,1754807438066,-460.0,0.00021442,2]
[378266042,1754807438075,-461.09276712,0.00021442,2]
[378266044,1754807438086,-460.0,0.00021442,2]
[378266046,1754807438096,-460.0,0.00021442,2]
[378266048,1754807438108,-468.20536123,0.00021442,2]
[378266050,1754807438117,-460.0,0.00021442,2]
[378266052,1754807438127,-460.0,0.00021442,2]
[378266054,1754807438136,-462.96702193,0.00021442,2]
[378266056,1754807438146,-461.44129343,0.00021442,2]
[378266058,1754807438155,-460.0,0.00021442,2]
[378266060,1754807438165,-460.0,0.00021442,2]
[378266062,1754807438175,-461.44412499,0.00021442,2]
[378266064,1754807438183,-462.74562488,0.00021442,2]
[378266066,1754807438193,-460.0,0.00021442,2]
[378266068,1754807438202,-461.72224423,0.00021442,2]
[378266070,1754807438212,-460.0,0.00021442,2]
[378266072,1754807438221,-460.0,0.00021442,2]
[378266074,1754807438231,-460.0,0.00021442,2]
[378266076,1754807438240,-464.84917316,0.00021442,2]
[378266078,1754807438249,-460.0,0.00021442,2]
[378266080,1754807438258,-460.0,0.00021442,2]
[378266082,1754807438268,-460.0,0.00021442,2]
[378266084,1754807438279,-460.0,0.00021442,2]
[378266086,1754807438288,-470.38733951,0.00021442,2]
[378266088,1754807438298,-460.0,0.00021442,2]
[378266090,1754807438309,-460.0,0.00021442,2]
[378266092,1754807438318,-460.0,0.00021442,2]
[378266094,1754807438327,-460.0,0.00021442,2]
[378266096,1754807438338,-460.0,0.00021442,2]
[378266098,1754807438347,-460.0,0.00021442,2]
[378266100,1754807438358,-460.0,0.00021442,2]
[378266102,1754807438368,-631.88,0.00021442,2]
[378266104,1754807438377,-460.0,0.00021442,2]
[378266106,1754807438387,-460.0,0.00021442,2]
[378266108,1754807438396,-460.0,0.00021442,2]
[378266110,1754807438406,-464.12949388,0.00021442,2]
[378266112,1754807438415,-460.0,0.00021442,2]
[378266114,1754807438424,-460.0,0.00021442,2]
[378266116,1754807438434,-507.25,0.00021442,2]
[378266118,1754807438443,-1213.7,0.00021442,2]
[378266120,1754807438453,-460.0,0.00021442,2]
[378266122,1754807438463,-460.0,0.00021442,2]
[378266124,1754807438472,-524.83,0.00021442,2]
[378266126,1754807438481,-460.0,0.00021442,2]
[378266128,1754807438491,-460.0,0.00021442,2]
[378266130,1754807438501,-460.0,0.00021442,2]
[378266132,1754807438510,-460.0,0.00021442,2]
[378266134,1754807438521,-460.0,0.00021442,2]
[378266136,1754807438531,-460.0,0.00021442,2]
[378266138,1754807438542,-460.0,0.00021442,2]
[378266140,1754807438551,-462.49520143,0.00021442,2]
[378266142,1754807438560,-460.0,0.00021442,2]
[378266144,1754807438570,-460.0,0.00021442,2]
[378266147,1754807438580,-461.17309443,0.00021442,2]
[378266149,1754807438590,-460.0,0.00021442,2]
[378266151,1754807438599,-460.0,0.00021442,2]
[378266153,1754807438610,-460.0,0.00021442,2]
[378266155,1754807438621,-460.0,0.00021442,2]
[378266157,1754807438632,-460.0,0.00021442,2]
[378266159,1754807438641,-460.0,0.00021442,2]
[378266161,1754807438651,-460.0,0.00021442,2]
[378266163,1754807438663,-460.0,0.00021442,2]
[378266165,1754807438673,-468.22781975,0.00021442,2]
[378266167,1754807438682,-463.87527549,0.00021442,2]
[378266169,1754807438692,-460.0,0.00021442,2]
[378266171,1754807438702,-507.94,0.00021442,2]
[378266172,1754807438712,-460.0,0.00021442,2]
[378266174,1754807438721,-216.76006153,0.00021442,2]
[378266176,1754807438730,-460.0,0.00021442,2]
[378266178,1754807438740,-460.0,0.00021442,2]
[378266180,1754807438749,-995.28,0.00021442,2]
[378266182,1754807438758,-460.0,0.00021442,2]
[378266185,1754807438770,-467.38134598,0.00021442,2]
[378266187,1754807438783,-460.0,0.00021442,2]
[378266189,1754807438797,-446.39796137,0.00021442,2]
[378266192,1754807438810,-460.0,0.00021442,2]
[378266194,1754807438821,-460.0,0.00021442,2]
[378266196,1754807438831,-460.0,0.00021442,2]
[378266198,1754807438843,-460.0,0.00021442,2]
[378266201,1754807438855,-460.0,0.00021442,2]
[378266203,1754807438868,-460.0,0.00021443,2]
[378266205,1754807438879,-461.35729384,0.00021443,2]
[378266208,1754807438892,-460.96445364,0.00021443,2]
[378266210,1754807438903,-460.0,0.00021443,2]
[378266212,1754807438915,-461.41951935,0.00021443,2]
[378266214,1754807438927,-344.50283401,0.00021443,2]
[378266217,1754807438940,-460.0,0.00021443,2]
[378266219,1754807438952,-460.0,0.00021443,2]
[378266221,1754807438963,-460.0,0.00021443,2]
[378266223,1754807438974,-460.0,0.00021443,2]
[378266225,1754807438984,-460.0,0.00021443,2]
[378266227,1754807438994,-460.0,0.00021443,2]
[378266230,1754807439006,-460.0,0.00021443,2]
[378266232,1754807439018,-460.0,0.00021443,2]
[378266234,1754807439029,-460.0,0.00021443,2]
[378266236,1754807439041,-471.21157734,0.00021443,2]
[378266239,1754807439052,-460.0,0.00021443,2]
[378266241,1754807439064,-503.75,0.00021443,2]
[378266243,1754807439076,-460.0,0.00021443,2]
[378266245,1754807439088,-460.0,0.00021443,2]
[378266248,1754807439100,-460.0,0.00021443,2]
[378266250,1754807439112,-460.0,0.00021443,2]
[378266252,1754807439124,-460.0,0.00021443,2]
[378266254,1754807439135,-460.0,0.00021443,2]
[378266257,1754807439147,-460.0,0.00021443,2]
[378266259,1754807439160,-460.0,0.00021443,2]
[378266261,1754807439171,-460.0,0.00021443,2]
[378266263,1754807439183,-460.0,0.00021443,2]
[378266266,1754807439195,-460.0,0.00021443,2]
[378266268,1754807439207,-460.0,0.00021443,2]
[378266270,1754807439219,-463.43850844,0.00021443,2]
[378266272,1754807439231,-460.0,0.00021443,2]
[378266274,1754807439242,-460.0,0.00021443,2]
[378266277,1754807439253,-460.0,0.00021443,2]
[378266279,1754807439265,-460.0,0.00021443,2]
[378266281,1754807439277,-460.0,0.00021443,2]
[378266283,1754807439289,-460.0,0.00021443,2]
[378266286,1754807439300,-460.0,0.00021443,2]
[378266288,1754807439311,-460.0,0.00021443,2]
[378266290,1754807439322,-460.0,0.00021443,2]
[378266293,1754807439332,-460.0,0.00021443,2]
[378266296,1754807439342,-460.0,0.00021443,2]
[378266299,1754807439353,-460.0,0.00021443,2]
[378266301,1754807439364,-460.0,0.00021443,2]
[378266303,1754807439374,-417.67103795,0.00021443,2]
[378266305,1754807439386,-471.18541063,0.00021443,2]
[378266309,1754807439398,-510.33413871,0.00021443,2]
[378266311,1754807439410,-461.51129196,0.00021443,2]
[378266313,1754807439421,-460.0,0.00021443,2]
[378266315,1754807439430,-470.24028196,0.00021443,2]
[378266317,1754807439440,-460.0,0.00021443,2]
[378266319,1754807439450,-462.06878139,0.00021443,2]
[378266321,1754807439460,-284.87719152,0.00021443,2]
[378266323,1754807439471,-465.10975718,0.00021443,2]
[378266326,1754807439483,-462.25689631,0.00021443,2]
[378266329,1754807439494,-461.06758522,0.00021443,2]
[378266332,1754807439506,-460.0,0.00021443,2]
[378266336,1754807439518,-460.60743074,0.00021443,2]
[378266339,1754807439528,-465.58385556,0.00021443,2]
[378266342,1754807439539,-460.0,0.00021443,2]
[378266345,1754807439550,-462.01067653,0.00021443,2]
[378266348,1754807439560,-463.46197778,0.00021443,2]
[378266351,1754807439571,-460.0,0.00021443,2]
[378266354,1754807439582,-466.88180667,0.00021443,2]
[378266357,1754807439593,-460.0,0.00021443,2]
[378266359,1754807439604,-460.0,0.00021443,2]
[378266361,1754807439614,-462.53642425,0.00021443,2]
[378266363,1754807439629,-460.0,0.00021443,2]
[378266365,1754807439641,-460.0,0.00021443,2]
[378266367,1754807439652,-460.0,0.00021443,2]
[378266370,1754807439663,-460.0,0.00021443,2]
[378266372,1754807439673,-462.79692728,0.00021443,2]
[378266374,1754807439684,-462.65017388,0.00021443,2]
[378266376,1754807439695,-462.36749492,0.00021443,2]
[378266378,1754807439707,-460.0,0.00021443,2]
[378266380,1754807439719,-460.0,0.00021443,2]
[378266382,1754807439730,-320.65914369,0.00021443,2]
[378266384,1754807439740,-461.69917901,0.00021443,2]
[378266386,1754807439751,-460.0,0.00021443,2]
[378266388,1754807439762,-470.89872402,0.00021443,2]
[378266391,1754807439773,-460.0,0.00021443,2]
[378266393,1754807439784,-460.0,0.00021443,2]
[378266395,1754807439794,-462.47629294,0.00021443,2]
[378266397,1754807439805,-460.0,0.00021443,2]
[378266399,1754807439816,-461.93018119,0.00021443,2]
[378266401,1754807439826,-486.75588056,0.00021443,2]
[378266403,1754807439836,-463.63262033,0.00021443,2]
[378266405,1754807439847,-460.0,0.00021443,2]
[378266407,1754807439857,-460.0,0.00021443,2]
[378266410,1754807439867,-460.0,0.00021443,2]
[378266412,1754807439878,-234.16703386,0.00021443,2]
[378266414,1754807439888,-460.0,0.00021443,2]
[378266416,1754807439899,-460.0,0.00021443,2]
[378266418,1754807439909,-466.45757835,0.00021443,2]
[378266420,1754807439920,-460.0,0.00021443,2]
[378266422,1754807439931,-225.63013126,0.00021443,2]
[378266424,1754807439942,-460.0,0.00021443,2]
[378266427,1754807439952,-460.0,0.00021443,2]
[378266429,1754807439963,-460.0,0.00021443,2]
[378266431,1754807439973,-460.0,0.00021443,2]
[378266433,1754807439983,-460.0,0.00021443,2]
[378266435,1754807439993,-460.71731962,0.00021443,2]
[378266437,1754807440004,-460.0,0.00021443,2]
[378266439,1754807440014,-473.37400511,0.00021443,2]
[378266441,1754807440025,-332.21751271,0.00021443,2]
[378266443,1754807440035,-461.76052891,0.00021443,2]
[378266446,1754807440046,-460.0,0.00021443,2]
[378266448,1754807440056,-460.0,0.00021443,2]
[378266450,1754807440067,-208.4652141,0.00021443,2]
[378266452,1754807440077,-460.0,0.00021443,2]
[378266454,1754807440087,-460.0,0.00021443,2]
[378266455,1754807440097,-460.0,0.00021443,2]
[378266456,1754807440108,-466.26362559,0.00021443,2]
[378266457,1754807440118,-464.99530703,0.00021443,2]
[378266458,1754807440128,-461.97201757,0.00021443,2]
[378266459,1754807440139,-460.0,0.00021443,2]
[378266460,1754807440149,-460.0,0.00021443,2]
[378266461,1754807440159,-460.0,0.00021443,2]
[378266462,1754807440170,-464.13123212,0.00021443,2]
[378266463,1754807440180,-700.05,0.00021443,2]
[378266464,1754807440191,-467.77851721,0.00021443,2]
[378266465,1754807440201,-460.0,0.00021443,2]
[378266466,1754807440212,-460.0,0.00021443,2]
[378266467,1754807440223,-460.0,0.00021443,2]
[378266468,1754807440234,-464.0322305,0.00021443,2]
[378266469,1754807440246,-460.0,0.00021443,2]
[378266470,1754807440257,-460.0,0.00021443,2]
[378266471,1754807440266,-461.95195551,0.00021443,2]
[378266472,1754807440276,-464.25511361,0.00021443,2]
[378266473,1754807440285,-460.0,0.00021443,2]
[378266474,1754807440449,-460.0,0.00021443,2]
[378266475,1754807440465,-460.0,0.00021443,2]
[378266476,1754807440475,-460.78,0.00021443,2]
[378266477,1754807440485,-460.0,0.00021443,2]
[378266478,1754807440495,-466.77723275,0.00021443,2]
[378266480,1754807440504,-460.0,0.00021443,2]
[378266482,1754807440514,-463.68991698,0.00021443,2]
[378266484,1754807440523,-462.50018906,0.00021443,2]
[378266486,1754807440532,-467.96802846,0.00021443,2]
[378266488,1754807440541,-460.0,0.00021443,2]
[378266490,1754807440551,-468.43521972,0.00021443,2]
[378266492,1754807440560,-460.0,0.00021443,2]
[378266494,1754807440570,-1124.6421169,0.00021443,2]
[378266496,1754807440580,-460.0,0.00021443,2]
[378266498,1754807440589,-464.85690491,0.00021443,2]
[378266500,1754807440598,-460.0,0.00021444,2]
[378266502,1754807440608,-599.57069725,0.00021444,2]
[378266504,1754807440617,-464.01335598,0.00021444,2]
[378266506,1754807440631,-460.0,0.00021444,2]
[378266508,1754807440640,-460.0,0.00021444,2]
[378266510,1754807440650,-460.0,0.00021444,2]
[378266512,1754807440658,-460.0,0.00021444,2]
[378266514,1754807440669,-553.13,0.00021444,2]
[378266516,1754807440679,-460.0,0.00021444,2]
[378266518,1754807440689,-464.20987264,0.00021444,2]
[378266520,1754807440699,-460.0,0.00021444,2]
[378266522,1754807440708,-460.0,0.00021444,2]
[378266524,1754807440718,-589.33,0.00021444,2]
[378266525,1754807440727,-460.0,0.00021444,2]
[378266527,1754807440736,-167.98006221,0.00021444,2]
[378266529,1754807440746,-469.25007823,0.00021444,2]
[378266531,1754807440755,-460.0,0.00021444,2]
[378266533,1754807440765,-464.52751358,0.00021444,2]
[378266535,1754807440775,-468.06384894,0.00021444,2]
[378266537,1754807440785,-460.0,0.00021444,2]
[378266539,1754807440794,-466.27704126,0.00021444,2]
[378266542,1754807440806,-460.0,0.00021444,2]
[378266544,1754807440817,-460.0,0.00021444,2]
[378266546,1754807440827,-460.0,0.00021444,2]
[378266547,1754807440836,-460.0,0.00021444,2]
[378266549,1754807440847,-464.86432493,0.00021444,2]
[378266551,1754807440858,-460.0,0.00021444,2]
[378266553,1754807440867,-460.0,0.00021444,2]
[378266555,1754807440876,-460.0,0.00021444,2]
[378266557,1754807440886,-460.0,0.00021444,2]
[378266559,1754807440895,-464.83439078,0.00021444,2]
[378266561,1754807440903,-460.0,0.00021444,2]
[378266563,1754807440913,-460.0,0.00021444,2]
[378266565,1754807440922,-463.0554529,0.00021444,2]
[378266567,1754807440931,-460.0,0.00021444,2]
[378266569,1754807440941,-460.0,0.00021444,2]
[378266571,1754807440950,-465.0570928,0.00021444,2]
[378266573,1754807440959,-463.99858007,0.00021444,2]
[378266575,1754807440968,-460.0,0.00021444,2]
[378266577,1754807440978,-460.0,0.00021444,2]
[378266579,1754807440987,-460.0,0.00021444,2]
[378266581,1754807440997,-460.0,0.00021444,2]
[378266583,1754807441006,-460.0,0.00021444,2]
[378266585,1754807441015,-463.91880729,0.00021444,2]
[378266587,1754807441025,-462.66883856,0.00021444,2]
[378266589,1754807441034,-460.0,0.00021444,2]
[378266591,1754807441044,-460.0,0.00021444,2]
[378266593,1754807441053,-460.0,0.00021444,2]
[378266595,1754807441062,-460.0,0.00021444,2]
[378266597,1754807441073,-460.0,0.00021444,2]
[378266599,1754807441082,-460.0,0.00021444,2]
[378266601,1754807441092,-460.0,0.00021444,2]
[378266603,1754807441101,-460.0,0.00021444,2]
[378266605,1754807441111,-460.0,0.00021444,2]
[378266607,1754807441120,-461.80743638,0.00021444,2]
[378266609,1754807441129,-460.0,0.00021444,2]
[378266611,1754807441139,-462.05911085,0.00021444,2]
[378266613,1754807441148,-460.0,0.00021444,2]
[378266615,1754807441158,-460.0,0.00021444,2]
[378266617,1754807441167,-485.98875986,0.00021444,2]
[378266619,1754807441177,-460.0,0.00021444,2]
[378266621,1754807441186,-460.0,0.00021444,2]
[378266623,1754807441195,-460.0,0.00021444,2]
[378266625,1754807441204,-462.29172309,0.00021444,2]
[378266627,1754807441213,-460.0,0.00021444,2]
[378266629,1754807441223,-307.87615451,0.00021445,2]
[378266631,1754807441232,-279.20289918,0.00021445,2]
[378266633,1754807441241,-462.23030418,0.00021445,2]
[378266635,1754807441250,-460.0,0.00021445,2]
[378266637,1754807441259,-460.37347558,0.00021445,2]
[378266639,1754807441268,-460.0,0.00021445,2]
[378266641,1754807441278,-463.04010179,0.00021445,2]
[378266643,1754807441287,-460.92781013,0.00021445,2]
[378266645,1754807441296,-460.0,0.00021445,2]
[378266647,1754807441306,-467.1004555,0.00021445,2]
[378266649,1754807441315,-462.90653018,0.00021445,2]
[378266651,1754807441324,-463.76245966,0.00021445,2]
[378266653,1754807441333,-464.54120031,0.00021445,2]
[378266655,1754807441342,-463.4585833,0.00021445,2]
[378266657,1754807441350,-465.56117883,0.00021445,2]
[378266658,1754807441360,-466.28649829,0.00021445,2]
[378266660,1754807441369,-464.57190293,0.00021445,2]
[378266662,1754807441380,-465.55426705,0.00021445,2]
[378266664,1754807441389,-465.45389701,0.00021445,2]
[378266666,1754807441398,-460.0,0.00021445,2]
[378266668,1754807441407,-463.56296659,0.00021445,2]
[378266670,1754807441416,-460.0,0.00021445,2]
[378266672,1754807441425,-219.6826912,0.00021445,2]
[378266674,1754807441435,-461.45850084,0.00021445,2]
[378266676,1754807441444,-464.64933575,0.00021445,2]
[378266678,1754807441453,-449.05754577,0.00021445,2]
[378266680,1754807441462,-462.43520373,0.00021445,2]
[378266682,1754807441471,-468.43076499,0.00021445,2]
[378266684,1754807441482,-460.0,0.00021445,2]
[378266686,1754807441491,-460.0,0.00021445,2]
[378266688,1754807441500,-463.84019422,0.00021445,2]
[378266690,1754807441509,-460.0,0.00021445,2]
[378266692,1754807441518,-586.91223049,0.00021445,2]
[378266694,1754807441527,-462.22829044,0.00021445,2]
[378266696,1754807441537,-460.0,0.00021445,2]
[378266698,1754807441546,-460.0,0.00021445,2]
[378266700,1754807441555,-461.54636365,0.00021445,2]
[378266702,1754807441564,-460.0,0.00021445,2]
[378266704,1754807441574,-461.99415858,0.00021445,2]
[378266706,1754807441583,-462.5408879,0.00021445,2]
[378266708,1754807441593,-460.0,0.00021445,2]
[378266710,1754807441602,-460.0,0.00021445,2]
[378266712,1754807441612,-461.10929828,0.00021445,2]
[378266714,1754807441624,-466.09315114,0.00021445,2]
[378266716,1754807441633,-463.80623036,0.00021445,2]
[378266718,1754807441643,-460.0,0.00021445,2]
[378266720,1754807441652,-460.0,0.00021445,2]
[378266722,1754807441661,-460.0,0.00021445,2]
[378266724,1754807441671,-460.0,0.00021445,2]
[378266726,1754807441681,-460.0,0.00021445,2]
[378266728,1754807441692,-464.34421792,0.00021445,2]
[378266730,1754807441702,-460.88629126,0.00021445,2]
[378266732,1754807441711,-460.0,0.00021445,2]
[378266734,1754807441720,-465.42952203,0.00021445,2]
[378266736,1754807441730,-507.731592,0.00021445,2]
[378266738,1754807441740,-460.0,0.00021445,2]
[378266740,1754807441749,-460.0,0.00021445,2]
[378266742,1754807441759,-1003.9504981,0.00021445,2]
[378266744,1754807441769,-462.48520524,0.00021445,2]
[378266746,1754807441778,-460.0,0.00021445,2]
[378266748,1754807441788,-461.93928645,0.00021445,2]
[378266750,1754807441797,-463.56371548,0.00021445,2]
[378266752,1754807441807,-460.0,0.00021445,2]
[378266754,1754807441817,-460.0,0.00021445,2]
[378266756,1754807441826,-469.39000661,0.00021445,2]
[378266758,1754807441835,-460.0,0.00021445,2]
[378266760,1754807441844,-461.82181028,0.00021445,2]
[378266762,1754807441854,-461.26768331,0.00021445,2]
[378266764,1754807441863,-465.92634809,0.00021445,2]
[378266765,1754807441872,-460.0,0.00021445,2]
[378266767,1754807441883,-460.0,0.00021445,2]
[378266769,1754807441893,-465.56816467,0.00021445,2]
[378266771,1754807441902,-460.0,0.00021445,2]
[378266773,1754807441912,-460.0,0.00021445,2]
[378266775,1754807441921,-462.6206176,0.00021445,2]
[378266777,1754807441930,-460.0,0.00021445,2]
[378266779,1754807441940,-460.0,0.00021445,2]
[378266781,1754807441949,-460.0,0.00021445,2]
[378266783,1754807441959,-460.0,0.00021445,2]
[378266785,1754807441968,-460.0,0.00021445,2]
[378266787,1754807441978,-460.0,0.00021445,2]
[378266789,1754807441987,-460.0,0.00021445,2]
[378266791,1754807441997,-466.16164462,0.00021445,2]
[378266793,1754807442007,-462.27244962,0.00021445,2]
[378266795,1754807442016,-460.0,0.00021445,2]
[378266797,1754807442025,-460.0,0.00021445,2]
[378266799,1754807442034,-460.0,0.00021445,2]
[378266801,1754807442043,-460.0,0.00021445,2]
[378266803,1754807442053,-460.0,0.00021445,2]
[378266805,1754807442063,-274.21485543,0.00021445,2]
[378266807,1754807442072,-460.0,0.00021445,2]
[378266809,1754807442081,-461.44897792,0.00021445,2]
[378266811,1754807442091,-460.0,0.00021445,2]
[378266813,1754807442101,-460.0,0.00021445,2]
[378266815,1754807442111,-468.73,0.00021445,2]
[378266817,1754807442120,-460.0,0.00021445,2]
[378266819,1754807442130,-460.5085394,0.00021445,2]
[378266821,1754807442140,-460.0,0.00021445,2]
[378266823,1754807442149,-455.0,0.00021445,2]
[378266825,1754807442158,-463.21352527,0.00021445,2]
[378266827,1754807442168,-460.0,0.00021445,2]
[378266829,1754807442177,-460.0,0.00021445,2]
[378266831,1754807442187,-460.0,0.00021445,2]
[378266833,1754807442196,-460.0,0.00021445,2]
[378266835,1754807442205,-465.23755716,0.00021445,2]
[378266837,1754807442214,-460.0,0.00021445,2]
[378266839,1754807442223,-460.0,0.00021445,2]
[378266841,1754807442232,-475.66067339,0.00021445,2]
[378266843,1754807442241,-461.24551158,0.00021445,2]
[378266845,1754807442250,-500.0,0.00021445,2]
[378266847,1754807442259,-460.0,0.00021445,2]
[378266849,1754807442268,-460.0,0.00021445,2]
[378266851,1754807442277,-460.0,0.00021445,2]
[378266853,1754807442288,-460.0,0.00021445,2]
[378266855,1754807442302,-460.0,0.00021445,2]
[378266857,1754807442311,-460.0,0.00021445,2]
[378266859,1754807442320,-460.0,0.00021445,2]
[378266861,1754807442329,-460.0,0.00021445,2]
[378266863,1754807442339,-460.0,0.00021445,2]
[378266865,1754807442348,-460.0,0.00021445,2]
[378266867,1754807442358,-460.0,0.00021445,2]
[378266869,1754807442369,-455.0,0.00021445,2]
[378266871,1754807442383,-480.51853295,0.00021445,2]
[378266873,1754807442392,-542.13,0.00021445,2]
[378266875,1754807442401,-462.33891766,0.00021445,2]
[378266877,1754807442411,-460.0,0.00021445,2]
[378266879,1754807442420,-460.88637392,0.00021445,2]
[378266881,1754807442429,-460.0,0.00021445,2]
[378266883,1754807442439,-460.0,0.00021445,2]
[378266885,1754807442450,-460.0,0.00021445,2]
[378266887,1754807442459,-460.0,0.00021445,2]
[378266889,1754807442469,-470.97569399,0.00021445,2]
[378266891,1754807442478,-464.75302397,0.00021445,2]
[378266893,1754807442487,-460.0,0.00021445,2]
[378266895,1754807442498,-464.6167254,0.00021445,2]
[378266897,1754807442508,-464.06089106,0.00021445,2]
[378266899,1754807442518,-460.0,0.00021445,2]
[378266901,1754807442527,-452.18726922,0.00021445,2]
[378266903,1754807442536,-460.0,0.00021445,2]
[378266905,1754807442546,-464.51733324,0.00021445,2]
[378266907,1754807442555,-460.0,0.00021445,2]
[378266909,1754807442564,-460.0,0.00021445,2]
[378266911,1754807442573,-1198.86,0.00021445,2]
[378266913,1754807442582,-471.35001602,0.00021445,2]
[378266915,1754807442593,-460.0,0.00021445,2]
[378266917,1754807442602,-460.0,0.00021445,2]
[378266919,1754807442612,-460.0,0.00021445,2]
[378266921,1754807442624,-460.0,0.00021446,2]
[378266923,1754807442633,-465.02561235,0.00021446,2]
[378266925,1754807442642,-456.83961055,0.00021446,2]
[378266927,1754807442651,-480.46260625,0.00021446,2]
[378266929,1754807442660,-462.55046096,0.00021446,2]
[378266931,1754807442670,-460.0,0.00021446,2]
[378266933,1754807442680,-464.39143786,0.00021446,2]
[378266935,1754807442689,-493.28454338,0.00021446,2]
[378266937,1754807442699,-472.34033673,0.00021446,2]
[378266939,1754807442708,-463.37047231,0.00021446,2]
[378266941,1754807442717,-460.0,0.00021446,2]
[378266943,1754807442727,-460.0,0.00021446,2]
[378266944,1754807442736,-460.0,0.00021446,2]
[378266946,1754807442745,-460.0,0.00021446,2]
[378266948,1754807442754,-460.0,0.00021446,2]
[378266951,1754807442764,-460.0,0.00021446,2]
[378266952,1754807442773,-460.0,0.00021446,2]
[378266954,1754807442784,-460.0,0.00021446,2]
[378266956,1754807442794,-460.0,0.00021446,2]
[378266958,1754807442803,-460.0,0.00021446,2]
[378266959,1754807442812,-462.98777744,0.00021446,2]
[378266960,1754807442822,-460.0,0.00021446,2]
[378266961,1754807442831,-460.0,0.00021446,2]
[378266962,1754807442840,-461.85988641,0.00021446,2]
[378266963,1754807442849,-534.30869481,0.00021446,2]
[378266964,1754807442858,-460.0,0.00021446,2]
[378266965,1754807442867,-151.0,0.00021446,2]
[378266966,1754807442877,-497.79159648,0.00021473,2]
[378266967,1754807442886,-501.29871702,0.00021473,2]
[378266968,1754807442895,-527.21694621,0.00021473,2]
[378266969,1754807442904,-500.0,0.00021473,2]
[378266970,1754807442913,-500.0,0.00021473,2]
[378266972,1754807442922,-500.0,0.00021473,2]
[378266974,1754807442931,-628.20539267,0.00021473,2]
[378266976,1754807442941,-504.90839992,0.00021473,2]
[378266978,1754807442950,-500.0,0.00021473,2]
[378266980,1754807442960,-500.0,0.00021473,2]
[378266982,1754807442969,-500.0,0.00021473,2]
[378266984,1754807442978,-500.0,0.00021473,2]
[378266986,1754807442987,-500.0,0.00021473,2]
[378266988,1754807442996,-500.0,0.00021473,2]
[378266990,1754807443006,-500.0,0.00021473,2]
[378266992,1754807443016,-11569.14077275,0.000215,2]
[378266994,1754807443025,-338.6,0.0002161,10]
[378266996,1754807443034,-1413.7316609,0.00021613,5]
[378266999,1754807443044,-5649.27171694,0.00021613,5]